bitfinex/quotes_BTCUSD_20220306
["timestamp","ask_amount","ask_price","bid_price","bid_amount"]
[1646558392984,0.1,39053.0,39050.0,0.00496]
[1646558393585,0.05,39054.0,39050.0,0.00496]
[1646558393786,0.07,39055.0,39050.0,0.00496]
[1646558394086,0.27359269,39055.0,39050.0,0.00496]
[1646558394486,0.32359269,39055.0,39051.0,0.0001985]
[1646558394685,0.35004979,39054.0,39051.0,0.0001985]
[1646558394887,0.15,39054.0,39051.0,0.0001985]
[1646558395635,0.15,39054.0,39051.0,0.00019019]
[1646558395836,0.07,39055.0,39053.0,0.00496]
[1646558396836,0.06989318,39055.0,39053.0,0.00496]
[1646558397034,0.004,39059.0,39053.0,0.00496]
[1646558397238,0.004,39059.0,39058.0,0.00496]
[1646558397634,0.004,39059.0,39058.0,0.05586]
[1646558397838,0.004,39059.0,39058.0,0.0509]
[1646558398035,0.001,39061.0,39058.0,0.0509]
[1646558398233,0.001,39061.0,39057.0,0.00515097]
[1646558398436,0.001,39061.0,39059.0,0.00496]
[1646558398634,0.20804002,39061.0,39059.0,0.00496]
[1646558399138,0.20395111,39060.0,39059.0,0.00496]
[1646558399593,0.2,39055.0,39033.0,0.128079]
[1646558399791,0.2,39055.0,39030.0,0.55071274]
[1646558399792,0.06347795,39035.0,39030.0,0.79441699]
[1646558399987,0.05592123,39033.0,39027.0,0.2004]
[1646558400186,0.29931,39032.0,39027.0,0.2004]
[1646558400384,0.3,39032.0,39027.0,0.2004]
[1646558400585,0.75038035,39028.0,39027.0,0.2004]
[1646558400783,0.73221,39028.0,39026.0,0.001]
[1646558400985,0.1,39027.0,39021.0,0.6454]
[1646558401183,0.0509,39026.0,39021.0,0.6454]
[1646558401783,0.0509,39026.0,39022.0,0.00020961]
[1646558401987,0.001,39030.0,39025.0,0.09407877]
[1646558402184,0.001,39030.0,39025.0,0.11959877]
[1646558402583,0.001,39030.0,39028.0,0.11959877]
[1646558402783,0.001,39030.0,39029.0,0.19960146]
[1646558402985,0.3,39046.0,39029.0,0.19960146]
[1646558403235,0.0509,39046.0,39030.0,0.11959877]
[1646558403433,0.3,39045.0,39030.0,0.11959877]
[1646558403835,0.18950377,39036.0,39030.0,0.09407877]
[1646558404036,0.21496237,39035.0,39030.0,0.09407877]
[1646558404236,0.18950377,39036.0,39030.0,0.09806136]
[1646558404937,0.25055227,39029.0,39026.0,0.09407877]
[1646558405137,0.25055227,39029.0,39025.0,0.02552]
[1646558405540,0.30145227,39029.0,39021.0,0.73947877]
[1646558405939,0.30145227,39029.0,39021.0,0.6454]
[1646558406146,0.60145227,39029.0,39021.0,0.6454]
[1646558406349,0.16040017,39024.0,39021.0,0.6454]
[1646558406741,0.3,39027.0,39021.0,0.6454]
[1646558406993,0.0509,39023.0,39021.0,0.6454]
[1646558407189,0.3,39022.0,39021.0,0.6354]
[1646558407394,0.3509,39022.0,39021.0,0.6354]
[1646558407590,0.32248727,39022.0,39021.0,0.6354]
[1646558408189,0.6354,39021.0,39009.0,0.0041]
[1646558408398,0.05592123,39014.0,39002.0,0.14500792]
[1646558408598,0.05592123,39003.0,39000.0,10.00601]
[1646558408798,0.7074,39003.0,39000.0,10.00601]
[1646558408993,0.0509,39002.0,39000.0,10.00601]
[1646558409192,0.01281,39010.0,39000.0,10.00601]
[1646558409193,0.1,39007.0,39001.0,0.17681761]
[1646558409392,0.1,39012.0,39001.0,0.17681761]
[1646558409593,0.1,39018.0,39003.0,0.02552]
[1646558409795,0.2925,39023.0,39007.0,0.11959877]
[1646558409796,0.002,39011.0,39007.0,0.11959877]
[1646558409993,0.002,39011.0,39009.0,0.02552]
[1646558410192,0.002,39011.0,39009.0,0.00022111]
[1646558410394,0.002,39011.0,39010.0,0.20618263]
[1646558410831,0.002,39011.0,39010.0,0.20118263]
[1646558411031,0.3,39022.0,39010.0,0.20118263]
[1646558411634,0.4,39022.0,39016.0,0.21247286]
[1646558411832,0.1,39022.0,39016.0,0.21247286]
[1646558412232,0.20592123,39023.0,39016.0,0.21247286]
[1646558412432,0.20592123,39023.0,39009.0,0.004]
[1646558412631,0.45582123,39023.0,39017.0,0.00022109]
[1646558412836,0.45582123,39023.0,39000.0,10.00601]
[1646558412837,0.7756,39017.0,39000.0,10.00601]
[1646558413039,0.05592123,39009.0,39000.0,10.00601]
[1646558413335,0.3,39016.0,39000.0,10.00601]
[1646558413336,0.05592123,39008.0,39000.0,10.00601]
[1646558413533,0.05592123,39006.0,39003.0,0.21147224]
[1646558413735,0.3,39005.0,39000.0,10.00601]
[1646558413938,0.35592123,39005.0,39000.0,10.00601]
[1646558414134,0.16361079,39004.0,39000.0,10.00601]
[1646558414397,0.05592123,39001.0,39000.0,10.00601]
[1646558414597,0.2343835,39001.0,39000.0,10.00601]
[1646558414802,0.2343835,39001.0,39000.0,7.56426128]
[1646558414803,1.4923935,39001.0,39000.0,7.56426128]
[1646558415004,1.7551035,39001.0,39000.0,1.59516398]
[1646558415198,1.7551035,39001.0,38989.0,0.008]
[1646558415199,0.06700026,38996.0,38989.0,0.008]
[1646558415397,0.84152823,38998.0,38987.0,0.00027362]
[1646558415398,0.7756,38988.0,38987.0,0.00027362]
[1646558415596,1.36124123,38988.0,38987.0,0.00027362]
[1646558415797,1.27367707,38988.0,38987.0,0.00027362]
[1646558415996,0.57363123,38988.0,38987.0,0.00027362]
[1646558416199,0.32294,38988.0,38987.0,0.00027362]
[1646558416604,0.32294,38988.0,38975.0,0.001]
[1646558416605,1.2,38987.0,38975.0,0.001]
[1646558416798,1.2,38987.0,38976.0,7.175e-05]
[1646558416799,0.04979123,38977.0,38976.0,7.175e-05]
[1646558417001,0.05479,38978.0,38976.0,7.175e-05]
[1646558417206,0.03077,38978.0,38976.0,7.175e-05]
[1646558417396,0.40091254,38983.0,38975.0,0.00022101]
[1646558417397,0.65,38982.0,38975.0,0.00022101]
[1646558417597,0.2499,38983.0,38975.0,0.1476076]
[1646558417797,0.003,38979.0,38975.0,0.1476076]
[1646558417999,0.003,38979.0,38975.0,0.1426076]
[1646558418243,0.003,38979.0,38976.0,0.681751]
[1646558418443,0.003,38979.0,38976.0,0.3]
[1646558418742,0.003,38979.0,38975.0,0.1426076]
[1646558419348,0.16829346,38987.0,38975.0,0.1426076]
[1646558419845,0.16829346,38987.0,38976.0,0.3]
[1646558420041,0.16829346,38987.0,38973.0,7.175e-05]
[1646558420042,0.2499,38984.0,38973.0,7.175e-05]
[1646558420840,0.16752111,38983.0,38974.0,0.19245625]
[1646558421242,0.32252882,38982.0,38973.0,7.175e-05]
[1646558421447,0.29969123,38979.0,38973.0,7.175e-05]
[1646558421746,0.005,38976.0,38973.0,7.175e-05]
[1646558421994,0.005,38976.0,38972.0,0.03757175]
[1646558422191,0.18825724,38975.0,38972.0,0.03057175]
[1646558422392,0.005,38976.0,38973.0,9.09e-05]
[1646558422793,0.01281,38978.0,38973.0,9.09e-05]
[1646558422998,0.01281,38978.0,38956.0,0.00034126]
[1646558422999,1.27288563,38973.0,38956.0,0.00034126]
[1646558423198,0.04979123,38965.0,38956.0,0.00034126]
[1646558423396,1.2,38964.0,38956.0,0.00034126]
[1646558423593,0.04979123,38957.0,38956.0,0.00034126]
[1646558423795,0.04979123,38958.0,38956.0,0.00034126]
[1646558423992,0.16532271,38957.0,38956.0,0.00034126]
[1646558424193,1.2,38956.0,38947.0,0.001]
[1646558424399,0.03979123,38949.0,38945.0,0.155741]
[1646558424595,0.37342882,38948.0,38945.0,4.1e-05]
[1646558424795,0.03979123,38946.0,38945.0,4.1e-05]
[1646558424993,0.0399423,38946.0,38945.0,4.1e-05]
[1646558425193,0.03968524,38946.0,38945.0,4.1e-05]
[1646558425657,0.1,38953.0,38945.0,4.1e-05]
[1646558425845,0.0509,38956.0,38945.0,4.1e-05]
[1646558425846,0.003,38950.0,38945.0,4.1e-05]
[1646558426445,0.003,38950.0,38946.0,0.18487082]
[1646558426644,0.003,38950.0,38947.0,0.32252882]
[1646558426844,0.003,38950.0,38946.0,0.18487082]
[1646558426845,0.003,38950.0,38948.0,0.49206576]
[1646558427246,0.33534882,38966.0,38948.0,0.11031476]
[1646558427247,0.32252882,38966.0,38948.0,0.11031476]
[1646558427445,0.36221406,38968.0,38950.0,0.11031476]
[1646558427646,0.03968524,38968.0,38950.0,0.11031476]
[1646558427846,0.56775375,38968.0,38958.0,0.18454299]
[1646558428148,0.02503,38959.0,38958.0,0.18454299]
[1646558428346,0.02503,38959.0,38948.0,1.7900531]
[1646558428347,8.70514225,38950.0,38948.0,1.7900531]
[1646558428546,8.66954225,38950.0,38949.0,0.407271]
[1646558428746,8.66954225,38950.0,38949.0,0.457271]
[1646558428947,8.66954225,38950.0,38949.0,0.6410852]
[1646558429694,8.66954225,38950.0,38949.0,0.6360852]
[1646558430289,8.66954225,38950.0,38949.0,0.5910852]
[1646558430889,8.66954225,38950.0,38949.0,0.59115108]
[1646558431890,8.66954225,38950.0,38949.0,0.58615108]
[1646558432493,8.46954225,38950.0,38949.0,0.58615108]
[1646558432691,7.06954225,38950.0,38949.0,1.45895108]
[1646558432897,0.01282,38971.0,38956.0,0.80112]
[1646558433148,0.3421441,38978.0,38962.0,0.02552]
[1646558433344,0.00021304,38969.0,38966.0,0.02552]
[1646558433543,0.00021304,38969.0,38967.0,0.409257]
[1646558433744,0.00021304,38969.0,38967.0,0.456457]
[1646558434143,0.01282,38977.0,38973.0,0.19174558]
[1646558434545,0.16055,38979.0,38973.0,0.21726558]
[1646558434745,0.3421341,38985.0,38975.0,0.02052]
[1646558435046,0.5,38986.0,38975.0,1.73664946]
[1646558435242,0.01281,38985.0,38975.0,1.71112946]
[1646558435446,0.01281,38985.0,38979.0,0.16964597]
[1646558435642,0.65522029,38986.0,38979.0,0.16964597]
[1646558435643,0.00020615,38982.0,38979.0,0.16964597]
[1646558436246,0.00020615,38982.0,38980.0,0.383737]
[1646558436645,1.2,38983.0,38962.0,0.228297]
[1646558436910,0.15,38963.0,38938.0,0.53557538]
[1646558437204,0.15,38963.0,38956.0,4.43e-06]
[1646558437205,0.7756,38958.0,38956.0,4.43e-06]
[1646558437401,0.07802,38963.0,38938.0,0.03557538]
[1646558437402,0.7756,38954.0,38938.0,0.03557538]
[1646558437605,0.15,38945.0,38938.0,0.02657538]
[1646558437798,0.15,38944.0,38938.0,0.02657538]
[1646558437999,0.71209046,38943.0,38938.0,0.02657538]
[1646558438198,0.47571746,38942.0,38938.0,0.02657538]
[1646558438400,0.15,38941.0,38938.0,0.02657538]
[1646558438598,0.1971475,38939.0,38938.0,0.02657538]
[1646558438798,0.2343475,38939.0,38938.0,0.02657538]
[1646558438998,1.233573,38938.0,38923.0,0.025]
[1646558439202,0.85,38938.0,38937.0,7.543e-05]
[1646558439899,1.95411746,38938.0,38937.0,5.43e-06]
[1646558440101,1.9228,38938.0,38937.0,5.43e-06]
[1646558440298,1.93564,38938.0,38921.0,0.0011]
[1646558440498,0.15,38932.0,38921.0,0.0011]
[1646558440744,0.0472,38933.0,38921.0,0.0011]
[1646558440940,0.0472,38933.0,38925.0,0.17949676]
[1646558441138,0.0472,38933.0,38921.0,0.0011]
[1646558441339,0.2972,38933.0,38921.0,0.0011]
[1646558441741,0.15,38932.0,38921.0,0.0011]
[1646558441939,0.47851746,38932.0,38921.0,0.0011]
[1646558442139,0.15,38932.0,38921.0,0.0011]
[1646558442543,0.42851746,38933.0,38921.0,0.0011]
[1646558442544,0.52571746,38931.0,38921.0,0.0011]
[1646558442841,0.1,38933.0,38929.0,0.00108942]
[1646558442842,0.2971,38930.0,38929.0,0.00108942]
[1646558443040,0.4371,38930.0,38929.0,0.00108942]
[1646558443842,0.4371,38930.0,38929.0,0.001004]
[1646558444590,0.2971,38930.0,38926.0,0.00122442]
[1646558444792,0.0472,38930.0,38927.0,0.383573]
[1646558444998,0.004,38934.0,38927.0,0.409093]
[1646558445193,0.14,38944.0,38927.0,0.409093]
[1646558445592,0.14,38944.0,38927.0,0.02552]
[1646558445793,0.17200845,38943.0,38938.0,0.19366296]
[1646558445997,0.34490698,38951.0,38939.0,0.33206698]
[1646558445998,0.001,38948.0,38939.0,0.33206698]
[1646558446194,0.001,38948.0,38933.0,0.015]
[1646558446395,0.001,38948.0,38937.0,0.015]
[1646558446593,0.001,38948.0,38935.0,0.33206698]
[1646558446798,0.001,38948.0,38929.0,0.4914]
[1646558446993,0.001,38948.0,38936.0,0.21381919]
[1646558447192,0.0472,38947.0,38929.0,0.4914]
[1646558447394,0.33206698,38946.0,38929.0,0.4664]
[1646558447694,0.135,38943.0,38934.0,0.00128033]
[1646558448150,0.0472,38947.0,38934.0,0.00128033]
[1646558448346,0.135,38953.0,38936.0,0.02552]
[1646558448545,0.33206698,38961.0,38936.0,0.02552]
[1646558448747,0.135,38952.0,38936.0,0.02552]
[1646558448946,0.13522032,38952.0,38938.0,0.02552]
[1646558449146,0.00022032,38952.0,38951.0,0.21374284]
[1646558449347,8.78625716,38948.0,38944.0,0.02552]
[1646558449550,8.78625716,38948.0,38924.0,0.41944802]
[1646558449551,0.135,38945.0,38924.0,0.41944802]
[1646558449749,0.15,38940.0,38924.0,0.41944802]
[1646558449947,0.135,38929.0,38912.0,0.728]
[1646558450145,0.135,38929.0,38911.0,0.0383379]
[1646558450146,0.135,38925.0,38911.0,0.0133379]
[1646558450348,0.3325429,38924.0,38911.0,0.383773]
[1646558450549,0.0472,38928.0,38911.0,0.383773]
[1646558450550,0.3325429,38927.0,38911.0,0.383773]
[1646558450745,0.135,38922.0,38911.0,0.383773]
[1646558450944,0.3325429,38925.0,38911.0,0.383773]
[1646558451144,0.12099,38923.0,38910.0,0.18557566]
[1646558451349,0.12099,38919.0,38911.0,0.3325429]
[1646558451545,0.12099,38919.0,38909.0,0.00127529]
[1646558451546,0.11926,38919.0,38912.0,0.0672614]
[1646558451746,0.11753,38921.0,38913.0,0.3325429]
[1646558452010,0.11753,38921.0,38912.0,0.383773]
[1646558452209,0.11753,38921.0,38911.0,0.001]
[1646558452510,0.11753,38921.0,38915.0,7.898e-05]
[1646558452710,0.11753,38922.0,38916.0,0.383733]
[1646558452909,0.11753,38922.0,38915.0,7.898e-05]
[1646558453112,0.0472,38925.0,38915.0,7.898e-05]
[1646558453311,0.16473,38925.0,38922.0,0.20367006]
[1646558454011,0.00021741,38932.0,38923.0,0.70724388]
[1646558454012,0.003,38928.0,38923.0,0.70724388]
[1646558454412,0.0001,38928.0,38925.0,0.326184]
[1646558454613,0.20052,38936.0,38927.0,0.02552]
[1646558454813,0.20052,38936.0,38928.0,0.57233875]
[1646558455012,0.20028,38943.0,38928.0,0.48925175]
[1646558455013,0.00021743,38932.0,38928.0,0.48925175]
[1646558455850,0.20028,38943.0,38930.0,0.02552]
[1646558456050,0.00021745,38932.0,38930.0,0.02552]
[1646558456250,0.00021745,38932.0,38931.0,0.383773]
[1646558456450,0.00021745,38932.0,38931.0,0.70724388]
[1646558456650,0.11753,38945.0,38938.0,0.16583239]
[1646558457150,0.20004,38954.0,38938.0,0.16583239]
[1646558457151,0.11753,38946.0,38938.0,0.16583239]
[1646558457350,0.01282,38953.0,38938.0,0.16583239]
[1646558457552,8.90378716,38948.0,38938.0,0.16583239]
[1646558457751,0.16547139,38944.0,38938.0,0.16583239]
[1646558457951,0.1,38947.0,38938.0,0.16583239]
[1646558458155,8.78625716,38948.0,38938.0,0.16583239]
[1646558458454,0.00013909,38944.0,38938.0,0.16583239]
[1646558459055,0.00013909,38944.0,38939.0,0.409293]
[1646558459503,8.78625716,38948.0,38939.0,0.383773]
[1646558459708,0.00013909,38943.0,38939.0,0.383773]
[1646558460307,0.00013909,38943.0,38940.0,0.02552]
[1646558460504,0.00013909,38943.0,38941.0,0.300352]
[1646558460710,8.78625716,38948.0,38941.0,0.300352]
[1646558460907,0.00021743,38943.0,38941.0,0.300352]
[1646558461105,0.00021743,38943.0,38941.0,0.2999124]
[1646558461303,0.00021743,38943.0,38942.0,0.02552]
[1646558461505,0.00021743,38943.0,38942.0,0.383741]
[1646558461911,0.32200502,38947.0,38942.0,0.383786]
[1646558462110,0.00021742,38944.0,38938.0,0.007]
[1646558463009,0.32172244,38946.0,38938.0,0.007]
[1646558463249,0.39068867,38946.0,38929.0,0.4812]
[1646558463447,0.11753,38943.0,38929.0,0.4812]
[1646558463646,0.11753,38941.0,38929.0,0.4812]
[1646558463845,0.11753,38941.0,38923.0,0.32155274]
[1646558463846,0.21753,38941.0,38930.0,0.32200502]
[1646558464046,0.1,38941.0,38924.0,0.383786]
[1646558464246,0.1,38941.0,38932.0,0.16772032]
[1646558464949,0.1,38946.0,38932.0,0.16772032]
[1646558465147,0.1,38943.0,38932.0,0.16772032]
[1646558465348,0.11753,38943.0,38932.0,0.16772032]
[1646558466549,0.11753,38945.0,38932.0,0.16772032]
[1646558466889,0.01284,38945.0,38932.0,0.19324032]
[1646558467089,0.16009261,38940.0,38938.0,0.16780413]
[1646558467288,0.01284,38945.0,38938.0,0.16780413]
[1646558467892,0.01284,38945.0,38940.0,0.02552]
[1646558468094,0.16473,38956.0,38941.0,0.325416]
[1646558468095,0.00021741,38946.0,38941.0,0.325416]
[1646558468292,0.00021741,38946.0,38945.0,0.16793823]
[1646558468494,0.00021741,38946.0,38945.0,0.04784854]
[1646558469094,0.11753,38956.0,38945.0,0.04784854]
[1646558469292,0.01282,38962.0,38942.0,0.18883001]
[1646558469293,0.00021742,38947.0,38946.0,0.325372]
[1646558469496,0.00021742,38947.0,38946.0,1.148172]
[1646558469694,0.00021742,38947.0,38946.0,1.198172]
[1646558469900,7.76007458,38948.0,38947.0,0.80112]
[1646558470094,7.76007458,38948.0,38947.0,0.848967]
[1646558470295,5.48104431,38948.0,38947.0,0.9901357]
[1646558470495,4.85904117,38948.0,38947.0,1.25371867]
[1646558470746,0.1701167,38968.0,38951.0,1.35028319]
[1646558470945,0.32381824,38971.0,38957.0,0.02552]
[1646558471150,0.32381824,38971.0,38961.0,0.02552]
[1646558471343,0.04,38972.0,38963.0,0.19636647]
[1646558471544,0.20266251,38969.0,38963.0,0.19636647]
[1646558471743,0.00013877,38968.0,38957.0,0.32381824]
[1646558471943,0.00013877,38968.0,38957.0,0.003]
[1646558472143,0.00013877,38968.0,38958.0,0.347565]
[1646558472343,0.00013877,38968.0,38959.0,0.3471535]
[1646558472543,0.13035,38975.0,38960.0,0.347546]
[1646558472747,0.42743877,38976.0,38965.0,0.21298215]
[1646558472944,0.01282,38975.0,38966.0,0.34449388]
[1646558473146,0.01282,38975.0,38967.0,0.347475]
[1646558473345,0.015,38983.0,38968.0,0.69195488]
[1646558473346,0.01282,38981.0,38968.0,0.69195488]
[1646558473543,0.015,38983.0,38968.0,0.34449388]
[1646558473746,0.015,38983.0,38975.0,0.18776111]
[1646558473944,0.383773,38982.0,38965.0,0.02552]
[1646558474146,0.015,38983.0,38969.0,0.80112]
[1646558474394,0.015,38983.0,38973.0,0.02552]
[1646558474592,0.015,38983.0,38974.0,0.347395]
[1646558474792,0.015,38983.0,38975.0,0.37001388]
[1646558474992,0.015,38983.0,38976.0,0.347375]
[1646558475193,0.015,38983.0,38977.0,0.34449388]
[1646558475392,0.015,38983.0,38978.0,0.372875]
[1646558475592,0.00941827,38983.0,38978.0,0.372875]
[1646558475793,0.26271,38994.0,38980.0,0.372856]
[1646558475993,0.26271,38994.0,38981.0,0.37001388]
[1646558476191,0.2499,38994.0,38981.0,0.37001388]
[1646558476495,0.2499,38994.0,38981.0,0.34449388]
[1646558476690,0.00021751,38989.0,38982.0,0.347306]
[1646558476892,0.00021751,38989.0,38987.0,0.347262]
[1646558477095,0.00021751,38989.0,38976.0,0.36451172]
[1646558477096,0.19838721,38985.0,38984.0,0.182347]
[1646558477294,0.19838721,38985.0,38984.0,0.20276665]
[1646558477496,0.19838721,38985.0,38984.0,0.24996665]
[1646558477692,0.19838721,38985.0,38984.0,1.07556665]
[1646558477897,0.19838721,38985.0,38984.0,0.27444665]
[1646558478140,0.19838721,38985.0,38984.0,0.22444665]
[1646558478541,0.19838721,38985.0,38984.0,0.199027]
[1646558478743,0.3956484,38985.0,38979.0,0.005]
[1646558479339,0.3956484,38985.0,38976.0,0.3460759]
[1646558479542,0.5131784,38985.0,38977.0,0.01282]
[1646558479847,0.5131784,38985.0,38981.0,0.17991612]
[1646558479848,0.3956484,38985.0,38981.0,0.17991612]
[1646558480045,0.19794721,38985.0,38981.0,0.17991612]
[1646558480342,0.00020986,38983.0,38981.0,0.17991612]
[1646558481147,0.19794721,38985.0,38981.0,0.17991612]
[1646558481444,0.00020986,38984.0,38977.0,0.3460759]
[1646558481913,0.00020986,38984.0,38978.0,0.02552]
[1646558482117,0.00020986,38984.0,38977.0,0.3460759]
[1646558482513,0.00020986,38984.0,38978.0,0.02552]
[1646558482814,0.00020986,38984.0,38978.0,0.80112]
[1646558483017,0.00020986,38984.0,38979.0,1.44053023]
[1646558483214,0.00020986,38984.0,38983.0,0.82653965]
[1646558483415,0.00020986,38984.0,38983.0,1.17261555]
[1646558483617,0.00020986,38984.0,38983.0,0.39701555]
[1646558483814,0.00041272,38984.0,38983.0,0.39701555]
[1646558484012,0.00041272,38984.0,38983.0,0.05093965]
[1646558484218,0.00041272,38984.0,38983.0,0.39701555]
[1646558484414,0.00041272,38984.0,38983.0,1.17261555]
[1646558484815,0.00020286,38984.0,38983.0,1.17261555]
[1646558485017,0.00020286,38984.0,38983.0,1.21981555]
[1646558485214,0.00020286,38984.0,38983.0,1.26981555]
[1646558486241,0.19815007,38985.0,38983.0,1.26981555]
[1646558486546,0.19832924,38985.0,38984.0,1.17261555]
[1646558486745,0.19812638,38985.0,38984.0,1.21981555]
[1646558487440,0.19794721,38985.0,38984.0,1.21981555]
[1646558487841,0.19794721,38985.0,38984.0,0.07261965]
[1646558488442,0.05240998,38985.0,38984.0,0.07240384]
[1646558488842,0.05240998,38985.0,38984.0,0.09792384]
[1646558489040,0.05240998,38985.0,38984.0,0.87352384]
[1646558491391,0.05240998,38985.0,38984.0,1.21932542]
[1646558491793,0.05240998,38985.0,38984.0,1.25806389]
[1646558492492,0.05240998,38985.0,38984.0,1.23254389]
[1646558492493,0.04974241,38985.0,38984.0,1.23254389]
[1646558492695,0.04974241,38985.0,38981.0,0.01281]
[1646558492894,0.04974241,38985.0,38979.0,0.19000933]
[1646558493376,0.04974241,38985.0,38979.0,0.18200933]
[1646558493575,0.00020924,38984.0,38979.0,0.18200933]
[1646558494476,0.04974241,38985.0,38979.0,0.18200933]
[1646558494676,0.00020924,38983.0,38979.0,0.18200933]
[1646558495277,0.00020924,38983.0,38980.0,0.80112]
[1646558495675,0.04974241,38985.0,38982.0,0.82653965]
[1646558495876,0.04974241,38985.0,38984.0,0.00258991]
[1646558496075,0.04974241,38985.0,38984.0,0.02810991]
[1646558496277,0.04974241,38985.0,38978.0,0.3452241]
[1646558496278,0.51307399,38985.0,38975.0,0.007]
[1646558496481,0.54554399,38985.0,38975.0,0.007]
[1646558496677,0.501219,38976.0,38975.0,0.007]
[1646558496902,0.91882058,38976.0,38975.0,0.007]
[1646558497108,0.573019,38976.0,38975.0,0.007]
[1646558497303,0.37840672,38976.0,38975.0,0.007]
[1646558498305,0.30660672,38976.0,38966.0,0.16661691]
[1646558498507,0.02552,38975.0,38966.0,0.16661691]
[1646558498705,0.11753,38971.0,38966.0,0.16661691]
[1646558499306,0.18907672,38976.0,38966.0,0.16661691]
[1646558499607,0.00012295,38970.0,38966.0,0.16661691]
[1646558500403,0.16574324,38970.0,38966.0,0.16661691]
[1646558500659,0.02552,38979.0,38966.0,0.16661691]
[1646558500965,0.00020203,38970.0,38966.0,0.16661691]
[1646558501567,0.00020203,38970.0,38967.0,1.14692158]
[1646558501762,0.48692,38984.0,38967.0,1.14692158]
[1646558501763,0.4741,38984.0,38967.0,1.14692158]
[1646558501962,0.4741,38984.0,38976.0,0.16269235]
[1646558501963,0.11753,38979.0,38976.0,0.16269235]
[1646558502164,0.33191969,38990.0,38976.0,0.16269235]
[1646558502360,0.02552,38990.0,38976.0,0.16269235]
[1646558502562,0.11753,38979.0,38976.0,0.16269235]
[1646558503262,0.0002017,38979.0,38976.0,0.16269235]
[1646558503461,0.0002017,38979.0,38977.0,0.34580158]
[1646558503664,0.0002017,38979.0,38976.0,0.16269235]
[1646558503860,0.0002017,38979.0,38971.0,0.34580158]
[1646558504065,0.11753,38975.0,38970.0,0.006]
[1646558504264,0.15,38982.0,38974.0,0.02282974]
[1646558504494,0.06848922,38972.0,38970.0,0.006]
[1646558504893,0.18601922,38972.0,38970.0,0.006]
[1646558505294,0.18601922,38972.0,38969.0,0.21665446]
[1646558505594,0.06848922,38972.0,38969.0,0.21665446]
[1646558505995,0.18601922,38972.0,38969.0,0.21665446]
[1646558506195,0.06848922,38972.0,38969.0,0.21665446]
[1646558506794,0.06869095,38972.0,38969.0,0.21665446]
[1646558507200,0.18622095,38972.0,38969.0,0.21665446]
[1646558507395,0.18622095,38972.0,38961.0,0.7756]
[1646558507694,0.18622095,38972.0,38961.0,0.8256]
[1646558507895,0.18601922,38972.0,38961.0,0.05]
[1646558508159,0.00020173,38970.0,38959.0,0.8256]
[1646558508358,0.00020173,38970.0,38967.0,0.16176223]
[1646558508958,0.27673045,38972.0,38967.0,0.16176223]
[1646558509459,0.00012252,38970.0,38967.0,0.16176223]
[1646558510261,0.05348922,38972.0,38967.0,0.16176223]
[1646558510560,0.00012252,38970.0,38967.0,0.16176223]
[1646558511560,0.05348922,38972.0,38967.0,0.16176223]
[1646558511928,0.00049,38976.0,38972.0,0.7756]
[1646558512126,0.00049,38976.0,38974.0,0.7756]
[1646558512324,0.00049,38976.0,38975.0,0.7756]
[1646558512628,0.11753,38987.0,38975.0,0.97748634]
[1646558512923,0.11753,38987.0,38976.0,0.7756]
[1646558513323,0.11753,38982.0,38975.0,0.15468634]
[1646558513623,0.11753,38979.0,38975.0,0.15468634]
[1646558514023,0.36974652,38984.0,38975.0,0.15468634]
[1646558514224,0.00013037,38980.0,38975.0,0.15468634]
[1646558515021,0.11753,38981.0,38975.0,0.15468634]
[1646558515422,0.00013037,38979.0,38975.0,0.15468634]
[1646558516338,0.04974241,38985.0,38975.0,0.15468634]
[1646558516541,0.00020965,38979.0,38974.0,0.006]
[1646558516743,0.11753,38975.0,38974.0,0.006]
[1646558517540,0.27434193,38975.0,38974.0,0.006]
[1646558518146,0.27434193,38975.0,38969.0,0.20842796]
[1646558518542,0.11753,38972.0,38968.0,0.003]
[1646558518946,0.00020388,38974.0,38968.0,0.003]
[1646558519405,0.00020388,38974.0,38962.0,0.97505947]
[1646558519603,0.11753,38973.0,38962.0,0.8256]
[1646558519805,0.11753,38973.0,38960.0,0.27344003]
[1646558520004,0.11753,38973.0,38964.0,0.18316272]
[1646558520203,0.00020388,38972.0,38964.0,0.18316272]
[1646558521208,0.11753,38973.0,38972.0,0.20698428]
[1646558521405,0.11753,38973.0,38963.0,0.20699393]
[1646558521706,0.02552,38972.0,38960.0,0.23109014]
[1646558521911,0.14305,38961.0,38953.0,0.17640462]
[1646558522112,0.14305,38961.0,38946.0,0.00077635]
[1646558522113,0.11753,38954.0,38946.0,0.00077635]
[1646558522309,0.11753,38947.0,38945.0,0.5011]
[1646558522509,0.11753,38947.0,38945.0,0.0011]
[1646558522709,0.11753,38947.0,38946.0,0.00028791]
[1646558523011,0.14305,38947.0,38946.0,0.20092791]
[1646558523247,0.20306989,38947.0,38946.0,0.00028791]
[1646558523450,0.59428889,38947.0,38945.0,0.0011]
[1646558523647,0.18507989,38947.0,38945.0,0.0011]
[1646558524246,0.02552,38946.0,38945.0,0.0011]
[1646558524447,0.18507989,38947.0,38945.0,0.0011]
[1646558524647,0.00753,38947.0,38945.0,0.0011]
[1646558526247,0.00753,38947.0,38945.0,0.19814293]
[1646558526996,0.44385178,38957.0,38945.0,0.19814293]
[1646558526997,0.00753,38950.0,38945.0,0.19814293]
[1646558529797,0.00753,38951.0,38945.0,0.19814293]
[1646558530753,0.00753,38951.0,38945.0,0.19814293]
[1646558531950,0.00753,38951.0,38945.0,0.19314293]
[1646558534053,0.1622402,38953.0,38945.0,0.19314293]
[1646558534255,0.00753,38949.0,38945.0,0.19314293]
[1646558534493,0.1622402,38953.0,38945.0,0.19314293]
[1646558534694,0.02552,38952.0,38945.0,0.19314293]
[1646558534897,0.1622402,38953.0,38945.0,0.19314293]
[1646558535292,0.00753,38947.0,38945.0,0.19314293]
[1646558535697,0.00753,38952.0,38945.0,0.19314293]
[1646558535896,0.00753,38952.0,38946.0,0.33103178]
[1646558536697,0.00753,38955.0,38948.0,0.16151481]
[1646558536895,0.00753,38958.0,38949.0,0.33103178]
[1646558537094,0.02552,38962.0,38950.0,0.0472]
[1646558537293,0.02552,38962.0,38951.0,0.0472]